fUSD/lending_fUSD_20240222
["ID","MTS","AMOUNT","RATE_DAILY","PERIOD"]
[314828784,1708571494778,-500.0,0.00036438,2]
[314828785,1708571494787,-500.0,0.00036438,2]
[314828786,1708571494797,-500.0,0.00036438,2]
[314828787,1708571494805,-500.0,0.00036438,2]
[314828788,1708571494814,-500.0,0.00036438,2]
[314828789,1708571494823,-766.48,0.00036438,2]
[314828790,1708571494831,-500.0,0.00036438,2]
[314828791,1708571494840,-517.5259235,0.00036438,2]
[314828792,1708571494849,-500.0,0.00036438,2]
[314828793,1708571494858,-500.0,0.00036438,2]
[314828794,1708571494867,-500.0,0.00036438,2]
[314828795,1708571494876,-500.0,0.00036438,2]
[314828796,1708571494885,-278.67651243,0.00036438,2]
[314828797,1708571494894,-590.44,0.00036438,2]
[314828798,1708571494902,-500.0,0.00036438,2]
[314828799,1708571494912,-863.39,0.00036438,2]
[314828800,1708571494921,-500.0,0.00036438,2]
[314828801,1708571494930,-1000.0,0.00036438,7]
[314828802,1708571494939,-500.0,0.00036438,2]
[314828803,1708571494949,-599.33,0.00036438,2]
[314828804,1708571494958,-500.0,0.00036438,2]
[314828805,1708571494967,-500.0,0.00036438,2]
[314828806,1708571494978,-500.0,0.00036438,2]
[314828807,1708571494987,-613.73,0.00036438,2]
[314828808,1708571494997,-1052.29,0.00036438,2]
[314828809,1708571495007,-500.0,0.00036438,2]
[314828810,1708571495017,-500.0,0.00036438,2]
[314828811,1708571495027,-500.0,0.00036438,2]
[314828812,1708571495037,-500.0,0.00036438,2]
[314828813,1708571495048,-885.26,0.00036438,2]
[314828814,1708571495058,-500.0,0.00036438,2]
[314828815,1708571495068,-500.79,0.00036438,2]
[314828816,1708571495078,-500.0,0.00036438,2]
[314828817,1708571495087,-1518.98,0.00036438,2]
[314828818,1708571495097,-572.92,0.00036438,2]
[314828819,1708571495106,-537.4,0.00036438,2]
[314828820,1708571495116,-500.0,0.00036438,2]
[314828821,1708571495125,-500.0,0.00036438,2]
[314828822,1708571495135,-588.98,0.00036438,2]
[314828823,1708571495144,-543.5,0.00036438,2]
[314828824,1708571495154,-500.0,0.00036438,2]
[314828825,1708571495163,-1021.19,0.00036438,2]
[314828826,1708571495172,-533.41,0.00036438,2]
[314828827,1708571495181,-804.62,0.00036438,2]
[314828828,1708571495191,-500.0,0.00036438,2]
[314828829,1708571495200,-500.0,0.00036438,2]
[314828830,1708571495209,-519.70226747,0.00036438,2]
[314828831,1708571495218,-428.73,0.00036438,2]
[314828832,1708571495227,-500.0,0.00036438,2]
[314828833,1708571495236,-500.0,0.00036438,2]
[314828834,1708571495246,-500.0,0.00036438,2]
[314828835,1708571495255,-500.0,0.00036438,2]
[314828836,1708571495264,-500.0,0.00036438,2]
[314828837,1708571495274,-805.48,0.00036438,2]
[314828838,1708571495284,-585.68,0.00036438,2]
[314828839,1708571495295,-500.0,0.00036438,2]
[314828840,1708571495306,-500.0,0.00036438,2]
[314828841,1708571495316,-793.62,0.00036438,2]
[314828842,1708571495326,-500.0,0.00036438,2]
[314828843,1708571495337,-500.0,0.00036438,2]
[314828844,1708571495347,-1274.16,0.00036438,2]
[314828845,1708571495357,-500.0,0.00036438,2]
[314828846,1708571495367,-1038.93,0.00036438,2]
[314828847,1708571495378,-500.0,0.00036438,2]
[314828848,1708571495388,-500.0,0.00036438,2]
[314828849,1708571495399,-665.6,0.00036438,2]
[314828850,1708571495410,-502.22,0.00036438,2]
[314828851,1708571495421,-500.0,0.00036438,2]
[314828852,1708571495432,-500.0,0.00036438,2]
[314828853,1708571495441,-500.0,0.00036438,2]
[314828854,1708571495449,-682.52,0.00036438,2]
[314828855,1708571495457,-500.0,0.00036438,2]
[314828856,1708571495466,-500.0,0.00036438,2]
[314828857,1708571495474,-821.65,0.00036438,2]
[314828858,1708571495482,-500.0,0.00036438,2]
[314828859,1708571495491,-500.0,0.00036438,2]
[314828860,1708571495499,-161.85052097,0.00036438,2]
[314828861,1708571495508,-500.0,0.00036438,2]
[314828862,1708571495517,-166.91,0.00036438,2]
[314828863,1708571495526,-500.0,0.00036438,2]
[314828864,1708571495535,-500.0,0.00036438,2]
[314828865,1708571495550,-500.0,0.00036438,2]
[314828866,1708571495560,-500.0,0.00036438,2]
[314828867,1708571495570,-500.0,0.00036438,2]
[314828868,1708571495580,-500.0,0.00036438,2]
[314828869,1708571495591,-518.0,0.00036438,2]
[314828870,1708571495600,-1428.38,0.00036438,2]
[314828871,1708571495610,-548.96177456,0.00036438,2]
[314828872,1708571495624,-526.06,0.00036438,2]
[314828873,1708571495634,-500.0,0.00036438,2]
[314828874,1708571495645,-1006.8,0.00036438,2]
[314828875,1708571495655,-500.0,0.00036438,2]
[314828876,1708571495666,-504.77,0.00036438,2]
[314828877,1708571495677,-500.0,0.00036438,2]
[314828878,1708571495687,-500.0,0.00036438,2]
[314828879,1708571495697,-500.0,0.00036438,2]
[314828880,1708571495708,-500.0,0.00036438,2]
[314828881,1708571495718,-500.0,0.00036438,2]
[314828882,1708571495728,-1180.83,0.00036438,2]
[314828883,1708571495738,-500.0,0.00036438,2]
[314828884,1708571495748,-522.50317673,0.00036438,2]
[314828885,1708571495758,-500.0,0.00036438,2]
[314828886,1708571495768,-687.65,0.00036438,2]
[314828887,1708571495778,-631.32,0.00036438,2]
[314828888,1708571495788,-500.0,0.00036438,2]
[314828889,1708571495800,-1392.3,0.00036438,2]
[314828890,1708571495810,-500.0,0.00036438,2]
[314828891,1708571495819,-500.0,0.00036438,2]
[314828892,1708571495828,-500.0,0.00036438,2]
[314828893,1708571495837,-729.71,0.00036438,2]
[314828894,1708571495847,-500.0,0.00036438,2]
[314828895,1708571495856,-779.53,0.00036438,2]
[314828896,1708571495865,-533.99,0.00036438,2]
[314828897,1708571495875,-500.0,0.00036438,2]
[314828898,1708571495884,-500.0,0.00036438,2]
[314828899,1708571495894,-500.0,0.00036438,2]
[314828900,1708571495904,-500.0,0.00036438,2]
[314828901,1708571495914,-2169.96,0.00036438,2]
[314828902,1708571495924,-550.61466136,0.00036438,2]
[314828903,1708571495934,-500.0,0.00036438,2]
[314828904,1708571495945,-500.0,0.00036438,2]
[314828905,1708571495955,-500.0,0.00036438,2]
[314828906,1708571495965,-590.37,0.00036438,2]
[314828907,1708571495975,-616.42669988,0.00036438,2]
[314828908,1708571495985,-1003.2,0.00036438,2]
[314828909,1708571495994,-500.0,0.00036438,2]
[314828910,1708571496004,-494.122632,0.00036438,2]
[314828911,1708571496013,-505.12346844,0.00036438,2]
[314828912,1708571496023,-500.0,0.00036438,2]
[314828913,1708571496033,-500.0,0.00036438,2]
[314828914,1708571496044,-500.0,0.00036438,2]
[314828915,1708571496053,-500.0,0.00036438,2]
[314828916,1708571496062,-500.0,0.00036438,2]
[314828917,1708571496072,-500.0,0.00036438,2]
[314828918,1708571496081,-500.0,0.00036438,2]
[314828919,1708571496092,-500.0,0.00036438,2]
[314828920,1708571496101,-500.0,0.00036438,2]
[314828921,1708571496111,-348.39058455,0.00036438,2]
[314828922,1708571496120,-500.0,0.00036438,2]
[314828923,1708571496130,-500.0,0.00036438,2]
[314828924,1708571496139,-897.85,0.00036438,2]
[314828925,1708571496343,-532.78,0.00036438,2]
[314828926,1708571496354,-794.78,0.00036438,2]
[314828927,1708571496366,-500.0,0.00036438,2]
[314828928,1708571496377,-500.0,0.00036438,2]
[314828929,1708571496388,-500.0,0.00036438,2]
[314828930,1708571496399,-602.81,0.00036438,2]
[314828931,1708571496410,-600.8934936,0.00036438,2]
[314828932,1708571496421,-500.0,0.00036438,2]
[314828933,1708571496431,-500.0,0.00036438,2]
[314828934,1708571496442,-500.0,0.00036438,2]
[314828935,1708571496453,-161.24193541,0.00036438,2]
[314828936,1708571496463,-500.0,0.00036438,2]
[314828937,1708571496473,-500.0,0.00036438,2]
[314828938,1708571496484,-500.0,0.00036438,2]
[314828939,1708571496494,-500.0,0.00036438,2]
[314828940,1708571496505,-661.35,0.00036438,2]
[314828941,1708571496515,-1000.0,0.00036438,7]
[314828942,1708571496525,-235.47763201,0.00036438,2]
[314828943,1708571496535,-500.0,0.00036438,2]
[314828944,1708571496549,-508.03,0.00036438,2]
[314828945,1708571496559,-519.91396627,0.00036438,2]
[314828946,1708571496569,-500.0,0.00036438,2]
[314828947,1708571496579,-500.0,0.00036438,2]
[314828948,1708571496589,-747.96,0.00036438,2]
[314828949,1708571496599,-500.0,0.00036438,2]
[314828950,1708571496610,-500.0,0.00036438,2]
[314828951,1708571496622,-500.0,0.00036438,2]
[314828952,1708571496632,-500.0,0.00036438,2]
[314828953,1708571496641,-500.0,0.00036438,2]
[314828954,1708571496651,-597.18,0.00036438,2]
[314828955,1708571496660,-500.0,0.00036438,2]
[314828956,1708571496670,-993.12,0.00036438,2]
[314828957,1708571496680,-546.94,0.00036438,2]
[314828958,1708571496689,-500.0,0.00036438,2]
[314828959,1708571496700,-261.02550805,0.00036438,2]
[314828960,1708571496710,-500.0,0.00036438,2]
[314828961,1708571496719,-500.0,0.00036438,2]
[314828962,1708571496728,-500.0,0.00036438,2]
[314828963,1708571496737,-637.26,0.00036438,2]
[314828964,1708571496746,-500.0,0.00036438,2]
[314828965,1708571496755,-664.3,0.00036438,2]
[314828966,1708571496764,-500.0,0.00036438,2]
[314828967,1708571496774,-500.0,0.00036438,2]
[314828968,1708571496783,-500.0,0.00036438,2]
[314828969,1708571496794,-579.05,0.00036438,2]
[314828970,1708571496804,-500.0,0.00036438,2]
[314828971,1708571496813,-1140.82,0.00036438,2]
[314828972,1708571496822,-500.0,0.00036438,2]
[314828973,1708571496832,-500.0,0.00036438,2]
[314828974,1708571496841,-309.10646831,0.00036438,2]
[314828975,1708571496850,-825.66,0.00036438,2]
[314828976,1708571496860,-500.0,0.00036438,2]
[314828977,1708571496869,-634.35,0.00036438,2]
[314828978,1708571496879,-612.06,0.00036438,2]
[314828979,1708571496888,-500.0,0.00036438,2]
[314828980,1708571496897,-500.0,0.00036438,2]
[314828981,1708571496906,-1000.0,0.00036438,7]
[314828982,1708571496915,-1557.65,0.00036438,2]
[314828983,1708571496924,-233.8,0.00036438,2]
[314828984,1708571496933,-500.0,0.00036438,2]
[314828985,1708571496943,-500.0,0.00036438,2]
[314828986,1708571496952,-861.97,0.00036438,2]
[314828987,1708571496961,-500.0,0.00036438,2]
[314828988,1708571496970,-500.0,0.00036438,2]
[314828989,1708571496980,-500.0,0.00036438,2]
[314828990,1708571496989,-1000.0,0.00036438,7]
[314828991,1708571496999,-549.38,0.00036438,2]
[314828992,1708571497009,-500.0,0.00036438,2]
[314828993,1708571497018,-500.0,0.00036438,2]
[314828994,1708571497028,-500.0,0.00036438,2]
[314828995,1708571497037,-619.07,0.00036438,2]
[314828996,1708571497049,-500.0,0.00036438,2]
[314828997,1708571497058,-500.0,0.00036438,2]
[314828998,1708571497068,-500.0,0.00036438,2]
[314828999,1708571497077,-500.0,0.00036438,2]
[314829000,1708571497086,-848.14,0.00036438,2]
[314829001,1708571497096,-500.0,0.00036438,2]
[314829002,1708571497105,-914.66,0.00036438,2]
[314829003,1708571497115,-500.0,0.00036438,2]
[314829004,1708571497125,-500.0,0.00036438,2]
[314829005,1708571497134,-500.0,0.00036438,2]
[314829006,1708571497143,-500.0,0.00036438,2]
[314829007,1708571497153,-708.05,0.00036438,2]
[314829008,1708571497162,-500.0,0.00036438,2]
[314829009,1708571497171,-500.0,0.00036438,2]
[314829010,1708571497180,-500.0,0.00036438,2]
[314829011,1708571497189,-910.54,0.00036438,2]
[314829012,1708571497198,-1023.59,0.00036438,2]
[314829013,1708571497208,-500.0,0.00036438,2]
[314829014,1708571497217,-793.78,0.00036438,2]
[314829015,1708571497226,-500.0,0.00036438,2]
[314829016,1708571497235,-500.0,0.00036438,2]
[314829017,1708571497244,-500.0,0.00036438,2]
[314829018,1708571497254,-500.0,0.00036438,2]
[314829019,1708571497263,-500.0,0.00036438,2]
[314829020,1708571497272,-500.0,0.00036438,2]
[314829021,1708571497281,-748.23,0.00036438,2]
[314829022,1708571497292,-500.0,0.00036438,2]
[314829023,1708571497301,-500.0,0.00036438,2]
[314829024,1708571497310,-500.0,0.00036438,2]
[314829025,1708571497320,-500.0,0.00036438,2]
[314829026,1708571497329,-500.0,0.00036438,2]
[314829027,1708571497338,-486.64592102,0.00036438,2]
[314829028,1708571497347,-500.0,0.00036438,2]
[314829029,1708571497357,-548.7,0.00036438,2]
[314829030,1708571497366,-515.93,0.00036438,2]
[314829031,1708571497375,-500.0,0.00036438,2]
[314829032,1708571497384,-500.0,0.00036438,2]
[314829033,1708571497394,-521.6,0.00036438,2]
[314829034,1708571497404,-1492.93,0.00036438,2]
[314829035,1708571497413,-500.0,0.00036438,2]
[314829036,1708571497423,-500.0,0.00036438,2]
[314829037,1708571497433,-500.0,0.00036438,2]
[314829038,1708571497442,-500.0,0.00036438,2]
[314829039,1708571497452,-570.87,0.00036438,2]
[314829040,1708571497462,-527.84,0.00036438,2]
[314829041,1708571497473,-500.0,0.00036438,2]
[314829042,1708571497482,-500.0,0.00036438,2]
[314829043,1708571497491,-550.65,0.00036438,2]
[314829044,1708571497501,-500.0,0.00036438,2]
[314829045,1708571497510,-500.0,0.00036438,2]
[314829046,1708571497519,-500.0,0.00036438,2]
[314829047,1708571497529,-500.0,0.00036438,2]
[314829048,1708571497538,-500.0,0.00036438,2]
[314829049,1708571497549,-500.0,0.00036438,2]
[314829050,1708571497559,-500.0,0.00036438,2]
[314829051,1708571497569,-500.0,0.00036438,2]
[314829052,1708571497578,-500.0,0.00036438,2]
[314829053,1708571497588,-500.0,0.00036438,2]
[314829054,1708571497597,-500.0,0.00036438,2]
[314829055,1708571497607,-998.09,0.00036438,2]
[314829056,1708571497620,-500.0,0.00036438,2]
[314829057,1708571497629,-500.0,0.00036438,2]
[314829058,1708571497638,-1522.9,0.00036438,2]
[314829059,1708571497648,-221.52520266,0.00036438,2]
[314829060,1708571497658,-500.0,0.00036438,2]
[314829061,1708571497667,-212.16392658,0.00036438,2]
[314829062,1708571497676,-500.0,0.00036438,2]
[314829063,1708571497685,-500.0,0.00036438,2]
[314829064,1708571497697,-755.57,0.00036438,2]
[314829065,1708571497707,-500.0,0.00036438,2]
[314829066,1708571497716,-500.0,0.00036438,2]
[314829067,1708571497725,-500.0,0.00036438,2]
[314829068,1708571497735,-712.79,0.00036438,2]
[314829069,1708571497744,-500.0,0.00036438,2]
[314829070,1708571497753,-500.0,0.00036438,2]
[314829071,1708571497762,-523.12613136,0.00036438,2]
[314829072,1708571497771,-500.0,0.00036438,2]
[314829073,1708571497781,-537.75,0.00036438,2]
[314829074,1708571497791,-500.0,0.00036438,2]
[314829075,1708571497801,-617.53602258,0.00036438,2]
[314829076,1708571497810,-660.33,0.00036438,2]
[314829077,1708571497819,-514.3,0.00036438,2]
[314829078,1708571497828,-871.1,0.00036438,2]
[314829079,1708571497837,-859.65,0.00036438,2]
[314829080,1708571497846,-513.52228649,0.00036438,2]
[314829081,1708571497856,-378.3874371,0.00036438,2]
[314829082,1708571497865,-500.0,0.00036438,2]
[314829083,1708571497874,-500.0,0.00036438,2]
[314829084,1708571497883,-500.0,0.00036438,2]
[314829085,1708571497893,-504.73360314,0.00036438,2]
[314829086,1708571497902,-500.0,0.00036438,2]
[314829087,1708571497911,-1030.56,0.00036438,2]
[314829088,1708571497920,-500.0,0.00036438,2]
[314829089,1708571497929,-500.0,0.00036438,2]
[314829090,1708571497938,-794.87,0.00036438,2]
[314829091,1708571497947,-500.0,0.00036438,2]
[314829092,1708571497957,-840.11,0.00036438,2]
[314829093,1708571497966,-500.0,0.00036438,2]
[314829094,1708571497975,-350.44183108,0.00036438,2]
[314829095,1708571497984,-500.0,0.00036438,2]
[314829096,1708571497993,-711.79,0.00036438,2]
[314829097,1708571498003,-500.0,0.00036438,2]
[314829098,1708571498012,-509.67202073,0.00036438,2]
[314829099,1708571498021,-500.0,0.00036438,2]
[314829100,1708571498030,-500.0,0.00036438,2]
[314829101,1708571498039,-500.0,0.00036438,2]
[314829102,1708571498048,-500.0,0.00036438,2]
[314829103,1708571498057,-500.0,0.00036438,2]
[314829104,1708571498066,-1085.16,0.00036438,2]
[314829105,1708571498075,-534.21857247,0.00036438,2]
[314829106,1708571498085,-930.24,0.00036438,2]
[314829107,1708571498094,-1229.4,0.00036438,2]
[314829108,1708571498105,-500.0,0.00036438,2]
[314829109,1708571498114,-641.26,0.00036438,2]
[314829110,1708571498123,-1254.24,0.00036438,2]
[314829111,1708571498133,-500.0,0.00036438,2]
[314829112,1708571498142,-500.0,0.00036438,2]
[314829113,1708571498151,-500.0,0.00036438,2]
[314829114,1708571498161,-708.18,0.00036438,2]
[314829115,1708571498170,-500.0,0.00036438,2]
[314829116,1708571498179,-500.0,0.00036438,2]
[314829117,1708571498188,-500.0,0.00036438,2]
[314829118,1708571498197,-675.52,0.00036438,2]
[314829119,1708571498206,-663.36,0.00036438,2]
[314829120,1708571498216,-1285.49,0.00036438,2]
[314829121,1708571498225,-533.72,0.00036438,2]
[314829122,1708571498235,-500.0,0.00036438,2]
[314829123,1708571498245,-500.0,0.00036438,2]
[314829124,1708571498254,-500.0,0.00036438,2]
[314829125,1708571498263,-500.0,0.00036438,2]
[314829126,1708571498272,-500.0,0.00036438,2]
[314829127,1708571498281,-500.0,0.00036438,2]
[314829128,1708571498291,-972.67,0.00036438,2]
[314829129,1708571498300,-1033.35,0.00036438,2]
[314829130,1708571498310,-686.87,0.00036438,2]
[314829131,1708571498319,-500.0,0.00036438,2]
[314829132,1708571498328,-509.59794645,0.00036438,2]
[314829133,1708571498338,-500.0,0.00036438,2]
[314829134,1708571498348,-500.0,0.00036438,2]
[314829135,1708571498357,-690.5,0.00036438,2]
[314829136,1708571498366,-500.0,0.00036438,2]
[314829137,1708571498376,-1210.72,0.00036438,2]
[314829138,1708571498385,-500.0,0.00036438,2]
[314829139,1708571498395,-500.0,0.00036438,2]
[314829140,1708571498404,-500.0,0.00036438,2]
[314829141,1708571498414,-500.0,0.00036438,2]
[314829142,1708571498501,-363.84786074,0.00036438,2]
[314829143,1708571498511,-1505.51,0.00036438,2]
[314829144,1708571498521,-500.0,0.00036438,2]
[314829145,1708571498530,-500.0,0.00036438,2]
[314829146,1708571498541,-735.98,0.00036438,2]
[314829147,1708571498550,-500.0,0.00036438,2]
[314829148,1708571498560,-500.0,0.00036438,2]
[314829149,1708571498569,-500.0,0.00036438,2]
[314829150,1708571498578,-614.0,0.00036438,2]
[314829151,1708571498587,-1393.88,0.00036438,2]
[314829152,1708571498596,-500.0,0.00036438,2]
[314829153,1708571498606,-500.0,0.00036438,2]
[314829154,1708571498617,-500.0,0.00036438,2]
[314829155,1708571498626,-500.0,0.00036438,2]
[314829156,1708571498635,-500.0,0.00036438,2]
[314829157,1708571498644,-500.0,0.00036438,2]
[314829158,1708571498653,-500.0,0.00036438,2]
[314829159,1708571498662,-500.0,0.00036438,2]
[314829160,1708571498671,-602.51,0.00036438,2]
[314829161,1708571498680,-880.15,0.00036438,2]
[314829162,1708571498689,-500.0,0.00036438,2]
[314829163,1708571498700,-500.0,0.00036438,2]
[314829164,1708571498709,-970.4,0.00036438,2]
[314829165,1708571498718,-515.02,0.00036438,2]
[314829166,1708571498727,-500.0,0.00036438,2]
[314829167,1708571498736,-500.0,0.00036438,2]
[314829168,1708571498745,-500.0,0.00036438,2]
[314829169,1708571498754,-500.0,0.00036438,2]
[314829170,1708571498763,-500.0,0.00036438,2]
[314829171,1708571498773,-500.0,0.00036438,2]
[314829172,1708571498781,-500.0,0.00036438,2]
[314829173,1708571498791,-3077.14,0.00036438,2]
[314829174,1708571498801,-1740.36,0.00036438,2]
[314829175,1708571498810,-533.52,0.00036438,2]
[314829176,1708571498819,-500.0,0.00036438,2]
[314829177,1708571498828,-609.83,0.00036438,2]
[314829178,1708571498837,-500.0,0.00036438,2]
[314829179,1708571498846,-500.0,0.00036438,2]
[314829180,1708571498855,-500.0,0.00036438,2]
[314829181,1708571498864,-500.0,0.00036438,2]
[314829182,1708571498873,-500.0,0.00036438,2]
[314829183,1708571498882,-827.66,0.00036438,2]
[314829184,1708571498891,-2318.43,0.00036438,2]
[314829185,1708571498899,-1488.99,0.00036438,2]
[314829186,1708571498908,-500.0,0.00036438,2]
[314829187,1708571498917,-500.0,0.00036438,2]
[314829188,1708571498926,-2948.11,0.00036438,2]
[314829189,1708571498935,-500.0,0.00036438,2]
[314829190,1708571498944,-500.0,0.00036438,2]
[314829191,1708571498953,-500.0,0.00036438,2]
[314829192,1708571498962,-500.0,0.00036438,2]
[314829193,1708571498971,-500.0,0.00036438,2]
[314829194,1708571498980,-2491.28,0.00036438,2]
[314829195,1708571498989,-500.0,0.00036438,2]
[314829196,1708571498998,-500.0,0.00036438,2]
[314829197,1708571499008,-500.0,0.00036438,2]
[314829198,1708571499017,-500.0,0.00036438,2]
[314829199,1708571499026,-153.07968329,0.00036438,2]
[314829200,1708571499036,-500.0,0.00036438,2]
[314829201,1708571499045,-1249.14,0.00036438,2]
[314829202,1708571499054,-500.0,0.00036438,2]
[314829203,1708571499064,-500.0,0.00036438,2]
[314829204,1708571499073,-500.0,0.00036438,2]
[314829205,1708571499083,-500.0,0.00036438,2]
[314829206,1708571499092,-761.14,0.00036438,2]
[314829207,1708571499101,-500.0,0.00036438,2]
[314829208,1708571499111,-8712.42,0.00036438,2]
[314829209,1708571499120,-1331.83,0.00036438,2]
[314829210,1708571499130,-1153.25,0.00036438,2]
[314829211,1708571499139,-500.0,0.00036438,2]
[314829212,1708571499148,-500.0,0.00036438,2]
[314829213,1708571499157,-500.0,0.00036438,2]
[314829214,1708571499167,-5593.38,0.00036438,2]
[314829215,1708571499176,-1825.02,0.00036438,2]
[314829216,1708571499185,-1481.34,0.00036438,2]
[314829217,1708571499194,-905.27,0.00036438,2]
[314829218,1708571499203,-500.0,0.00036438,2]
[314829219,1708571499212,-509.08711727,0.00036438,2]
[314829220,1708571499221,-500.0,0.00036438,2]
[314829221,1708571499230,-521.42065168,0.00036438,2]
[314829222,1708571499240,-603.06594808,0.00036438,2]
[314829223,1708571499249,-150.0,0.00036438,2]
[314829224,1708571499258,-9540.98,0.00036438,2]
[314829225,1708571499267,-500.0,0.00036438,2]
[314829226,1708571499277,-241.21,0.00036438,2]
[314829227,1708571499286,-500.0,0.00036438,2]
[314829228,1708571499295,-1233.59,0.00036438,2]
[314829229,1708571499305,-818.0,0.00036438,2]
[314829230,1708571499314,-3195.85,0.00036438,2]
[314829231,1708571499325,-500.0,0.00036438,2]
[314829232,1708571499334,-500.0,0.00036438,2]
[314829233,1708571499344,-500.0,0.00036438,2]
[314829234,1708571499354,-8159.8,0.00036438,2]
[314829235,1708571499363,-500.0,0.00036438,2]
[314829236,1708571499372,-500.0,0.00036438,2]
[314829237,1708571499382,-3562.02,0.00036438,2]
[314829238,1708571499391,-500.0,0.00036438,2]
[314829239,1708571499400,-756.65,0.00036438,2]
[314829240,1708571499410,-500.0,0.00036438,2]
[314829241,1708571499419,-513.52530712,0.00036438,2]
[314829242,1708571499429,-500.0,0.00036438,2]
[314829243,1708571499439,-500.0,0.00036438,2]
[314829244,1708571499449,-500.0,0.00036438,2]
[314829245,1708571499458,-1097.81,0.00036438,2]
[314829246,1708571499468,-1046.88,0.00036438,2]
[314829247,1708571499478,-500.0,0.00036438,2]
[314829248,1708571499488,-633.91,0.00036438,2]
[314829249,1708571499497,-1760.89,0.00036438,2]
[314829250,1708571499507,-504.37033962,0.00036438,2]
[314829251,1708571499516,-501.57,0.00036438,2]
[314829252,1708571499526,-3877.71,0.00036438,2]
[314829253,1708571499536,-3730.63,0.00036438,2]
[314829254,1708571499546,-7057.18,0.00036438,2]
[314829255,1708571499555,-797.35,0.00036438,2]
[314829256,1708571499564,-500.0,0.00036438,2]
[314829257,1708571499574,-589.83,0.00036438,2]
[314829258,1708571499583,-500.0,0.00036438,2]
[314829259,1708571499592,-1003.08,0.00036438,2]
[314829260,1708571499601,-500.0,0.00036438,2]
[314829261,1708571499611,-500.0,0.00036438,2]
[314829262,1708571499625,-542.91,0.00036438,2]
[314829263,1708571499634,-622.76,0.00036438,2]
[314829264,1708571499644,-4861.35,0.00036438,2]
[314829265,1708571499654,-500.0,0.00036438,2]
[314829266,1708571499663,-930.1,0.00036438,2]
[314829267,1708571499672,-553.37,0.00036438,2]
[314829268,1708571499682,-500.0,0.00036438,2]
[314829269,1708571499691,-500.0,0.00036438,2]
[314829270,1708571499701,-3412.21,0.00036438,2]
[314829271,1708571499711,-500.0,0.00036438,2]
[314829272,1708571499720,-500.0,0.00036438,2]
[314829273,1708571499729,-500.0,0.00036438,2]
[314829274,1708571499739,-9518.08,0.00036438,2]
[314829275,1708571499747,-500.0,0.00036438,2]
[314829276,1708571499756,-514.35143407,0.00036438,2]
[314829277,1708571499765,-500.0,0.00036438,2]
[314829278,1708571499774,-1168.72,0.00036438,2]
[314829279,1708571499784,-500.0,0.00036438,2]
[314829280,1708571499794,-500.0,0.00036438,2]
[314829281,1708571499802,-1548.09,0.00036438,2]
[314829282,1708571499811,-500.0,0.00036438,2]
[314829283,1708571499820,-11555.49,0.00036438,2]